[Event "Titled Tuesday Blitz October 5 2021"]
[White "Melian, Juan Sebastian"]
[Black "Beulen, Marcel"]
[WhiteFideId "3706575"]
[BlackFideId "1001450"]
[WhiteElo "1672"]
[BlackElo "2376"]
[Result "0-1"]
[Round "07"]
[TimeControl "180+1"]
[Date "2021.10.05"]
[WhiteClock "0:00:01"]
[BlackClock "0:00:11"]

1. e4 {[%clk 0:02:58]}  d5 {[%clk 0:03:00]} 2. Nc3 {[%clk 0:02:59]}  dxe4 {[%clk 0:02:59]} 3. Nxe4 {[%clk 0:03:00]}  Nd7 {[%clk 0:02:59]} 4. d4 {[%clk 0:02:59]}  Ngf6 {[%clk 0:02:59]} 5. Ng3 {[%clk 0:02:59]}  e6 {[%clk 0:02:59]} 6. Nf3 {[%clk 0:03:00]}  c6 {[%clk 0:02:59]} 7. Bd3 {[%clk 0:03:00]}  Be7 {[%clk 0:02:58]} 8. Qe2 {[%clk 0:02:59]}  O-O {[%clk 0:02:58]} 9. Bd2 {[%clk 0:02:55]}  b6 {[%clk 0:02:54]} 10. h4 {[%clk 0:02:45]}  Bb7 {[%clk 0:02:51]} 11. Ng5 {[%clk 0:02:29]}  c5 {[%clk 0:02:46]} 12. c3 {[%clk 0:02:02]}  cxd4 {[%clk 0:02:44]} 13. cxd4 {[%clk 0:02:03]}  Rc8 {[%clk 0:02:33]} 14. O-O {[%clk 0:01:56]}  h6 {[%clk 0:02:27]} 15. Rad1 {[%clk 0:01:48]}  hxg5 {[%clk 0:02:19]} 16. hxg5 {[%clk 0:01:49]}  Nh7 {[%clk 0:02:18]} 17. f4 {[%clk 0:01:32]}  g6 {[%clk 0:02:16]} 18. f5 {[%clk 0:01:25]}  e5 {[%clk 0:02:15]} 19. dxe5 {[%clk 0:01:01]}  Bc5+ {[%clk 0:01:57]} 20. Kh2 {[%clk 0:00:57]}  Nxg5 {[%clk 0:01:38]} 21. Qg4 {[%clk 0:00:56]}  Nxe5 {[%clk 0:01:34]} 22. Qxg5 {[%clk 0:00:51]}  Qxg5 {[%clk 0:01:21]} 23. Bxg5 {[%clk 0:00:52]}  Nxd3 {[%clk 0:01:20]} 24. Rxd3 {[%clk 0:00:53]}  Ba6 {[%clk 0:00:44]} 25. Rfd1 {[%clk 0:00:53]}  Bxd3 {[%clk 0:00:44]} 26. Rxd3 {[%clk 0:00:54]}  f6 {[%clk 0:00:42]} 27. Bh6 {[%clk 0:00:49]}  Rfd8 {[%clk 0:00:42]} 28. Rf3 {[%clk 0:00:16]}  g5 {[%clk 0:00:41]} 29. Ne4 {[%clk 0:00:12]}  Kf7 {[%clk 0:00:41]} 30. Kg3 {[%clk 0:00:07]}  Rh8 {[%clk 0:00:39]} 31. Bxg5 {[%clk 0:00:07]}  fxg5 {[%clk 0:00:39]} 32. Nxg5+ {[%clk 0:00:08]}  Kf6 {[%clk 0:00:37]} 33. Ne4+ {[%clk 0:00:08]}  Ke5 {[%clk 0:00:38]} 34. Nc3 {[%clk 0:00:07]}  Rhg8+ {[%clk 0:00:34]} 35. Kh2 {[%clk 0:00:07]}  Rcf8 {[%clk 0:00:33]} 36. b4 {[%clk 0:00:02]}  Bd4 {[%clk 0:00:32]} 37. Ne2 {[%clk 0:00:02]}  Ke4 {[%clk 0:00:16]} 38. Rh3 {[%clk 0:00:01]}  Be5+ {[%clk 0:00:16]} 39. Kh1 {[%clk 0:00:01]}  Rxf5 {[%clk 0:00:16]} 40. Rh4+ {[%clk 0:00:02]}  Ke3 {[%clk 0:00:14]} 41. Ng1 {[%clk 0:00:01]}  Rf1 {[%clk 0:00:13]} 42. Rh3+ {[%clk 0:00:02]}  Kd2 {[%clk 0:00:12]} 43. b5 {[%clk 0:00:01]}  Bd4 {[%clk 0:00:11]} 0-1


[Site "https://www.chess.com"]

[Event "Titled Tuesday Blitz October 5 2021"]
[White "Moroni, Luca Jr"]
[Black "Yaksin, Oleg"]
[WhiteFideId "865834"]
[BlackFideId "24105880"]
[WhiteElo "2491"]
[BlackElo "2256"]
[Result "1-0"]
[Round "07"]
[TimeControl "180+1"]
[Date "2021.10.05"]
[WhiteClock "0:00:58"]
[BlackClock "0:00:06"]

1. d4 {[%clk 0:03:00]}  Nf6 {[%clk 0:02:59]} 2. c4 {[%clk 0:03:01]}  e6 {[%clk 0:02:59]} 3. Nc3 {[%clk 0:03:00]}  Bb4 {[%clk 0:02:59]} 4. Nf3 {[%clk 0:03:01]}  O-O {[%clk 0:02:58]} 5. Bg5 {[%clk 0:03:01]}  b6 {[%clk 0:02:56]} 6. e3 {[%clk 0:03:00]}  Bb7 {[%clk 0:02:56]} 7. Bd3 {[%clk 0:03:01]}  Bxc3+ {[%clk 0:02:55]} 8. bxc3 {[%clk 0:03:00]}  d6 {[%clk 0:02:55]} 9. Qc2 {[%clk 0:03:00]}  h6 {[%clk 0:02:55]} 10. Bh4 {[%clk 0:03:00]}  Nbd7 {[%clk 0:02:55]} 11. O-O {[%clk 0:03:00]}  e5 {[%clk 0:02:55]} 12. e4 {[%clk 0:02:59]}  Qe7 {[%clk 0:02:51]} 13. Rae1 {[%clk 0:02:58]}  g5 {[%clk 0:02:47]} 14. Bg3 {[%clk 0:02:58]}  Nh5 {[%clk 0:02:47]} 15. Nd2 {[%clk 0:02:58]}  Nf4 {[%clk 0:02:42]} 16. Bxf4 {[%clk 0:02:50]}  gxf4 {[%clk 0:02:39]} 17. g3 {[%clk 0:02:50]}  Qf6 {[%clk 0:02:38]} 18. Be2 {[%clk 0:02:28]}  exd4 {[%clk 0:02:27]} 19. cxd4 {[%clk 0:02:27]}  fxg3 {[%clk 0:02:20]} 20. hxg3 {[%clk 0:02:26]}  Qxd4 {[%clk 0:02:20]} 21. Bg4 {[%clk 0:02:25]}  Ne5 {[%clk 0:02:14]} 22. Bh5 {[%clk 0:02:20]}  Bc8 {[%clk 0:01:39]} 23. Nb3 {[%clk 0:02:17]}  Qxc4 {[%clk 0:01:36]} 24. Qd2 {[%clk 0:02:17]}  Qe6 {[%clk 0:01:20]} 25. f4 {[%clk 0:02:15]}  Nd7 {[%clk 0:01:03]} 26. Nd4 {[%clk 0:02:13]}  Qf6 {[%clk 0:01:03]} 27. e5 {[%clk 0:01:51]}  Qg7 {[%clk 0:00:41]} 28. Nf5 {[%clk 0:01:43]}  Qh7 {[%clk 0:00:41]} 29. Ne7+ {[%clk 0:01:36]}  Kh8 {[%clk 0:00:38]} 30. exd6 {[%clk 0:01:36]}  Nc5 {[%clk 0:00:30]} 31. Qd4+ {[%clk 0:01:24]}  Qg7 {[%clk 0:00:30]} 32. Qxg7+ {[%clk 0:01:24]}  Kxg7 {[%clk 0:00:31]} 33. Bf3 {[%clk 0:01:18]}  Ba6 {[%clk 0:00:24]} 34. Bxa8 {[%clk 0:01:15]}  Rxa8 {[%clk 0:00:16]} 35. dxc7 {[%clk 0:01:15]}  Ne6 {[%clk 0:00:13]} 36. Rc1 {[%clk 0:01:05]}  Bc8 {[%clk 0:00:08]} 37. f5 {[%clk 0:01:00]}  Nc5 {[%clk 0:00:07]} 38. f6+ {[%clk 0:01:00]}  Kf8 {[%clk 0:00:06]} 39. Rfd1 {[%clk 0:00:59]}  Ke8 {[%clk 0:00:06]} 40. Rd8# {[%clk 0:00:58]} 1-0


[Site "https://www.chess.com"]

[Event "Titled Tuesday Blitz October 5 2021"]
[White "Mostbauer, Maximilian"]
[Black "Gelman, Alexander"]
[WhiteFideId "1626680"]
[BlackFideId "4118316"]
[WhiteElo "2188"]
[BlackElo "2375"]
[Result "0-1"]
[Round "07"]
[TimeControl "180+1"]
[Date "2021.10.05"]
[WhiteClock "0:00:11"]
[BlackClock "0:00:19"]

1. d4 {[%clk 0:03:00]}  Nf6 {[%clk 0:03:00]} 2. Nf3 {[%clk 0:03:01]}  c5 {[%clk 0:03:00]} 3. g3 {[%clk 0:03:02]}  cxd4 {[%clk 0:03:00]} 4. Bg2 {[%clk 0:03:03]}  d6 {[%clk 0:02:59]} 5. O-O {[%clk 0:03:04]}  e6 {[%clk 0:03:00]} 6. Nxd4 {[%clk 0:03:04]}  a6 {[%clk 0:03:01]} 7. b3 {[%clk 0:03:03]}  Be7 {[%clk 0:03:01]} 8. Bb2 {[%clk 0:03:04]}  O-O {[%clk 0:03:02]} 9. Nd2 {[%clk 0:03:05]}  Qc7 {[%clk 0:03:02]} 10. c4 {[%clk 0:03:05]}  Nbd7 {[%clk 0:03:02]} 11. Rc1 {[%clk 0:03:04]}  Ne5 {[%clk 0:03:02]} 12. N2f3 {[%clk 0:03:03]}  Ng6 {[%clk 0:03:01]} 13. h4 {[%clk 0:03:02]}  Bd7 {[%clk 0:03:00]} 14. Re1 {[%clk 0:02:49]}  Rac8 {[%clk 0:03:00]} 15. e4 {[%clk 0:02:49]}  Qb8 {[%clk 0:02:59]} 16. Ng5 {[%clk 0:02:13]}  h6 {[%clk 0:02:51]} 17. Nh3 {[%clk 0:02:06]}  b5 {[%clk 0:02:47]} 18. Bf1 {[%clk 0:01:33]}  bxc4 {[%clk 0:02:44]} 19. Bxc4 {[%clk 0:01:32]}  d5 {[%clk 0:02:38]} 20. exd5 {[%clk 0:01:29]}  exd5 {[%clk 0:02:38]} 21. h5 {[%clk 0:01:08]}  Bb4 {[%clk 0:01:50]} 22. hxg6 {[%clk 0:00:52]}  Bxe1 {[%clk 0:01:46]} 23. Nf4 {[%clk 0:00:45]}  Bxf2+ {[%clk 0:01:38]} 24. Kxf2 {[%clk 0:00:46]}  dxc4 {[%clk 0:01:38]} 25. Nf3 {[%clk 0:00:38]}  c3 {[%clk 0:01:05]} 26. Bxc3 {[%clk 0:00:36]}  Ne4+ {[%clk 0:01:03]} 27. Kg2 {[%clk 0:00:34]}  Bg4 {[%clk 0:00:50]} 28. gxf7+ {[%clk 0:00:31]}  Rxf7 {[%clk 0:00:50]} 29. Qd4 {[%clk 0:00:30]}  Nxc3 {[%clk 0:00:43]} 30. Ne5 {[%clk 0:00:20]}  Qb7+ {[%clk 0:00:36]} 31. Kh2 {[%clk 0:00:20]}  Nb5 {[%clk 0:00:29]} 32. Rxc8+ {[%clk 0:00:17]}  Qxc8 {[%clk 0:00:30]} 33. Qd5 {[%clk 0:00:16]}  Qc2+ {[%clk 0:00:24]} 34. Ng2 {[%clk 0:00:14]}  Bh5 {[%clk 0:00:16]} 35. Nxf7 {[%clk 0:00:11]}  Bxf7 {[%clk 0:00:17]} 36. Qd8+ {[%clk 0:00:12]}  Kh7 {[%clk 0:00:17]} 37. a4 {[%clk 0:00:13]}  Nc3 {[%clk 0:00:15]} 38. Qd4 {[%clk 0:00:13]}  Ne2 {[%clk 0:00:14]} 39. Qe3 {[%clk 0:00:12]}  Bxb3 {[%clk 0:00:13]} 40. Kh3 {[%clk 0:00:11]}  Bxa4 {[%clk 0:00:14]} 41. Nf4 {[%clk 0:00:09]}  Bd7+ {[%clk 0:00:14]} 42. g4 {[%clk 0:00:07]}  Nxf4+ {[%clk 0:00:14]} 43. Qxf4 {[%clk 0:00:07]}  Qd3+ {[%clk 0:00:14]} 44. Kh2 {[%clk 0:00:08]}  Qe2+ {[%clk 0:00:14]} 45. Kh3 {[%clk 0:00:06]}  Qxg4+ {[%clk 0:00:14]} 46. Qxg4 {[%clk 0:00:06]}  Bxg4+ {[%clk 0:00:15]} 47. Kh4 {[%clk 0:00:07]}  a5 {[%clk 0:00:16]} 48. Kg3 {[%clk 0:00:08]}  a4 {[%clk 0:00:17]} 49. Kh4 {[%clk 0:00:09]}  a3 {[%clk 0:00:17]} 50. Kg3 {[%clk 0:00:09]}  a2 {[%clk 0:00:18]} 51. Kf4 {[%clk 0:00:10]}  a1=Q {[%clk 0:00:18]} 52. Kg3 {[%clk 0:00:11]}  Qf6 {[%clk 0:00:18]} 53. Kh2 {[%clk 0:00:11]}  Bd7 {[%clk 0:00:19]} 54. Kg3 {[%clk 0:00:12]}  Kg6 {[%clk 0:00:19]} 55. Kh2 {[%clk 0:00:11]}  Kg5 {[%clk 0:00:20]} 56. Kg3 {[%clk 0:00:12]}  Qf4+ {[%clk 0:00:20]} 57. Kg2 {[%clk 0:00:13]}  Kh4 {[%clk 0:00:19]} 58. Kg1 {[%clk 0:00:12]}  Qd2 {[%clk 0:00:19]} 59. Kf1 {[%clk 0:00:11]}  Kg3 {[%clk 0:00:19]} 0-1


[Site "https://www.chess.com"]

[Event "Titled Tuesday Blitz October 5 2021"]
[White "Nenezic, Marko"]
[Black "Florescu, Codrut-Constantin"]
[WhiteFideId "912123"]
[BlackFideId "1202200"]
[WhiteElo "2484"]
[BlackElo "2243"]
[Result "1/2-1/2"]
[Round "07"]
[TimeControl "180+1"]
[Date "2021.10.05"]
[WhiteClock "0:00:10"]
[BlackClock "0:00:09"]

1. Nf3 {[%clk 0:03:00]}  d5 {[%clk 0:02:59]} 2. g3 {[%clk 0:03:00]}  e6 {[%clk 0:02:59]} 3. Bg2 {[%clk 0:03:01]}  Nf6 {[%clk 0:02:59]} 4. O-O {[%clk 0:03:02]}  Be7 {[%clk 0:02:59]} 5. d4 {[%clk 0:03:03]}  O-O {[%clk 0:02:59]} 6. c4 {[%clk 0:03:03]}  c6 {[%clk 0:02:59]} 7. Qc2 {[%clk 0:03:03]}  Nbd7 {[%clk 0:02:59]} 8. Nbd2 {[%clk 0:03:02]}  b6 {[%clk 0:02:59]} 9. b3 {[%clk 0:03:03]}  Bb7 {[%clk 0:02:59]} 10. Bb2 {[%clk 0:03:03]}  Rc8 {[%clk 0:02:59]} 11. Rac1 {[%clk 0:03:04]}  c5 {[%clk 0:02:59]} 12. Qb1 {[%clk 0:03:01]}  dxc4 {[%clk 0:02:58]} 13. Nxc4 {[%clk 0:03:01]}  Be4 {[%clk 0:02:58]} 14. Qa1 {[%clk 0:03:00]}  Qc7 {[%clk 0:02:58]} 15. dxc5 {[%clk 0:02:51]}  bxc5 {[%clk 0:02:50]} 16. Bh3 {[%clk 0:02:46]}  a5 {[%clk 0:02:39]} 17. Nfd2 {[%clk 0:02:43]}  Bd5 {[%clk 0:02:35]} 18. e4 {[%clk 0:02:41]}  Bb7 {[%clk 0:02:33]} 19. Bc3 {[%clk 0:02:33]}  Ra8 {[%clk 0:02:32]} 20. a4 {[%clk 0:02:33]}  Bc6 {[%clk 0:02:26]} 21. Bg2 {[%clk 0:02:24]}  Rfb8 {[%clk 0:02:25]} 22. Rfe1 {[%clk 0:02:16]}  h6 {[%clk 0:02:17]} 23. Rb1 {[%clk 0:02:12]}  Rb7 {[%clk 0:02:10]} 24. h3 {[%clk 0:02:11]}  Rbb8 {[%clk 0:02:09]} 25. Kh2 {[%clk 0:02:09]}  Rb7 {[%clk 0:02:09]} 26. f4 {[%clk 0:02:10]}  Rbb8 {[%clk 0:02:06]} 27. Ne5 {[%clk 0:02:01]}  Bb7 {[%clk 0:01:53]} 28. Ndc4 {[%clk 0:01:55]}  Bf8 {[%clk 0:01:33]} 29. Rbd1 {[%clk 0:01:52]}  Rd8 {[%clk 0:01:32]} 30. Qb2 {[%clk 0:01:47]}  Be7 {[%clk 0:01:27]} 31. Nxd7 {[%clk 0:01:45]}  Rxd7 {[%clk 0:01:22]} 32. Rxd7 {[%clk 0:01:45]}  Qxd7 {[%clk 0:01:21]} 33. Nxa5 {[%clk 0:01:45]}  Ba6 {[%clk 0:01:18]} 34. Bxf6 {[%clk 0:01:41]}  gxf6 {[%clk 0:01:11]} 35. e5 {[%clk 0:01:42]}  Rc8 {[%clk 0:00:59]} 36. exf6 {[%clk 0:01:42]}  Bf8 {[%clk 0:00:59]} 37. Bf1 {[%clk 0:01:14]}  Bxf1 {[%clk 0:00:50]} 38. Rxf1 {[%clk 0:01:15]}  Qd3 {[%clk 0:00:48]} 39. Rf2 {[%clk 0:01:08]}  Rb8 {[%clk 0:00:46]} 40. Qe2 {[%clk 0:00:58]}  Qc3 {[%clk 0:00:45]} 41. Nc6 {[%clk 0:00:42]}  Rxb3 {[%clk 0:00:42]} 42. Qg4+ {[%clk 0:00:43]}  Kh7 {[%clk 0:00:37]} 43. Ne5 {[%clk 0:00:43]}  Rb2 {[%clk 0:00:31]} 44. Kg2 {[%clk 0:00:30]}  Rxf2+ {[%clk 0:00:31]} 45. Kxf2 {[%clk 0:00:31]}  Qc2+ {[%clk 0:00:29]} 46. Qe2 {[%clk 0:00:30]}  Qxa4 {[%clk 0:00:28]} 47. Nxf7 {[%clk 0:00:18]}  Qd4+ {[%clk 0:00:28]} 48. Kg2 {[%clk 0:00:18]}  Qxf6 {[%clk 0:00:29]} 49. Ne5 {[%clk 0:00:18]}  Bg7 {[%clk 0:00:28]} 50. Qe3 {[%clk 0:00:18]}  Qe7 {[%clk 0:00:27]} 51. Qe4+ {[%clk 0:00:18]}  Kg8 {[%clk 0:00:27]} 52. Nc4 {[%clk 0:00:18]}  Qd7 {[%clk 0:00:26]} 53. Ne3 {[%clk 0:00:16]}  Kf7 {[%clk 0:00:24]} 54. Kf3 {[%clk 0:00:16]}  Qd4 {[%clk 0:00:23]} 55. Qb7+ {[%clk 0:00:16]}  Kg8 {[%clk 0:00:23]} 56. Qc8+ {[%clk 0:00:15]}  Kh7 {[%clk 0:00:21]} 57. Qxe6 {[%clk 0:00:15]}  c4 {[%clk 0:00:22]} 58. Qxc4 {[%clk 0:00:15]}  Qd2 {[%clk 0:00:22]} 59. Qe4+ {[%clk 0:00:15]}  Kg8 {[%clk 0:00:22]} 60. h4 {[%clk 0:00:15]}  Qe1 {[%clk 0:00:21]} 61. Kg4 {[%clk 0:00:14]}  Qe2+ {[%clk 0:00:20]} 62. Kf5 {[%clk 0:00:13]}  Qh5+ {[%clk 0:00:19]} 63. Ke6 {[%clk 0:00:13]}  Qf7+ {[%clk 0:00:19]} 64. Kd6 {[%clk 0:00:13]}  Bf8+ {[%clk 0:00:20]} 65. Kc6 {[%clk 0:00:13]}  Qf6+ {[%clk 0:00:19]} 66. Kb5 {[%clk 0:00:13]}  Qd6 {[%clk 0:00:19]} 67. Qd5+ {[%clk 0:00:13]}  Qxd5+ {[%clk 0:00:19]} 68. Nxd5 {[%clk 0:00:13]}  Kf7 {[%clk 0:00:19]} 69. h5 {[%clk 0:00:13]}  Ke6 {[%clk 0:00:20]} 70. Kc4 {[%clk 0:00:13]}  Kf5 {[%clk 0:00:19]} 71. Kd4 {[%clk 0:00:10]}  Kg4 {[%clk 0:00:19]} 72. Ke5 {[%clk 0:00:11]}  Kxg3 {[%clk 0:00:17]} 73. f5 {[%clk 0:00:10]}  Kg4 {[%clk 0:00:17]} 74. Nf6+ {[%clk 0:00:09]}  Kh4 {[%clk 0:00:17]} 75. Ke6 {[%clk 0:00:09]}  Ba3 {[%clk 0:00:15]} 76. Nd7 {[%clk 0:00:09]}  Kxh5 {[%clk 0:00:14]} 77. f6 {[%clk 0:00:08]}  Kg5 {[%clk 0:00:14]} 78. f7 {[%clk 0:00:09]}  h5 {[%clk 0:00:14]} 79. Ne5 {[%clk 0:00:09]}  h4 {[%clk 0:00:12]} 80. Nc6 {[%clk 0:00:10]}  Bf8 {[%clk 0:00:11]} 81. Nd4 {[%clk 0:00:10]}  h3 {[%clk 0:00:10]} 82. Nf3+ {[%clk 0:00:10]}  Kf4 {[%clk 0:00:09]} 83. Nh2 {[%clk 0:00:09]}  Kg3 {[%clk 0:00:09]} 84. Nf1+ {[%clk 0:00:09]}  Kf2 {[%clk 0:00:09]} 85. Nh2 {[%clk 0:00:10]}  Kg3 {[%clk 0:00:08]} 86. Nf1+ {[%clk 0:00:10]}  Kf2 {[%clk 0:00:08]} 87. Nh2 {[%clk 0:00:10]}  Kg3 {[%clk 0:00:09]} 1/2-1/2


[Site "https://www.chess.com"]

[Event "Titled Tuesday Blitz October 5 2021"]
[White "Nesterov, Arseniy"]
[Black "Maksimovic, Bojan"]
[WhiteFideId "24198455"]
[BlackFideId "14408120"]
[WhiteElo "2494"]
[BlackElo "2439"]
[Result "0-1"]
[Round "07"]
[TimeControl "180+1"]
[Date "2021.10.05"]
[WhiteClock "0:00:13"]
[BlackClock "0:00:06"]

1. d4 {[%clk 0:03:00]}  d5 {[%clk 0:02:59]} 2. c4 {[%clk 0:03:01]}  e5 {[%clk 0:02:59]} 3. dxe5 {[%clk 0:03:00]}  d4 {[%clk 0:02:59]} 4. a3 {[%clk 0:03:01]}  Nc6 {[%clk 0:02:58]} 5. Nf3 {[%clk 0:02:59]}  Nge7 {[%clk 0:02:58]} 6. b4 {[%clk 0:02:58]}  Ng6 {[%clk 0:02:58]} 7. Bb2 {[%clk 0:02:58]}  a5 {[%clk 0:02:58]} 8. b5 {[%clk 0:02:58]}  Ncxe5 {[%clk 0:02:58]} 9. Nxe5 {[%clk 0:02:58]}  Nxe5 {[%clk 0:02:57]} 10. e3 {[%clk 0:02:58]}  Bc5 {[%clk 0:02:57]} 11. exd4 {[%clk 0:02:46]}  Bg4 {[%clk 0:02:55]} 12. Qd2 {[%clk 0:02:10]}  Qh4 {[%clk 0:01:32]} 13. Be2 {[%clk 0:01:00]}  O-O-O {[%clk 0:01:05]} 14. Qf4 {[%clk 0:00:55]}  g5 {[%clk 0:00:19]} 15. Qe4 {[%clk 0:00:20]}  f5 {[%clk 0:00:12]} 16. Qe3 {[%clk 0:00:17]}  Rhe8 {[%clk 0:00:10]} 17. O-O {[%clk 0:00:15]}  Bxe2 {[%clk 0:00:10]} 18. Qxe2 {[%clk 0:00:13]}  Ng4 {[%clk 0:00:10]} 19. Qxg4 {[%clk 0:00:13]}  Qxg4 {[%clk 0:00:08]} 20. dxc5 {[%clk 0:00:14]}  Qxc4 {[%clk 0:00:08]} 21. Bf6 {[%clk 0:00:12]}  Qxf1+ {[%clk 0:00:06]} 22. Kxf1 {[%clk 0:00:13]}  Rd1# {[%clk 0:00:06]} 0-1


[Site "https://www.chess.com"]

[Event "Titled Tuesday Blitz October 5 2021"]
[White "Nozdrachev, Leonid"]
[Black "Chernomordik, Pavel"]
[WhiteFideId "24113433"]
[BlackFideId "2804530"]
[WhiteElo "2124"]
[BlackElo "2281"]
[Result "0-1"]
[Round "07"]
[TimeControl "180+1"]
[Date "2021.10.05"]
[WhiteClock "0:00:04"]
[BlackClock "0:00:14"]

1. e4 {[%clk 0:03:00]}  g6 {[%clk 0:02:59]} 2. h4 {[%clk 0:02:58]}  d5 {[%clk 0:02:58]} 3. exd5 {[%clk 0:02:56]}  Nf6 {[%clk 0:02:57]} 4. d4 {[%clk 0:02:55]}  Qxd5 {[%clk 0:02:53]} 5. Be2 {[%clk 0:02:50]}  Bg7 {[%clk 0:02:46]} 6. Bf3 {[%clk 0:02:50]}  Qd6 {[%clk 0:02:46]} 7. c4 {[%clk 0:02:48]}  Nc6 {[%clk 0:02:40]} 8. Ne2 {[%clk 0:02:48]}  Bg4 {[%clk 0:02:32]} 9. Bf4 {[%clk 0:02:45]}  Qd7 {[%clk 0:02:14]} 10. d5 {[%clk 0:02:43]}  Bxf3 {[%clk 0:02:12]} 11. gxf3 {[%clk 0:02:41]}  Nb4 {[%clk 0:01:58]} 12. Nbc3 {[%clk 0:02:40]}  Nh5 {[%clk 0:01:56]} 13. Be3 {[%clk 0:02:36]}  Qf5 {[%clk 0:01:54]} 14. Nd4 {[%clk 0:02:24]}  Qd7 {[%clk 0:01:45]} 15. a3 {[%clk 0:02:21]}  Na6 {[%clk 0:01:44]} 16. b4 {[%clk 0:02:17]}  e5 {[%clk 0:01:28]} 17. dxe6 {[%clk 0:02:12]}  fxe6 {[%clk 0:01:28]} 18. Nde2 {[%clk 0:02:01]}  O-O-O {[%clk 0:01:21]} 19. Qxd7+ {[%clk 0:01:38]}  Rxd7 {[%clk 0:01:21]} 20. b5 {[%clk 0:01:39]}  Nb8 {[%clk 0:01:18]} 21. Bxa7 {[%clk 0:01:39]}  Rf8 {[%clk 0:01:15]} 22. Be3 {[%clk 0:01:25]}  Rxf3 {[%clk 0:01:12]} 23. Rd1 {[%clk 0:01:20]}  Rxd1+ {[%clk 0:01:03]} 24. Kxd1 {[%clk 0:01:21]}  Nd7 {[%clk 0:01:01]} 25. Ne4 {[%clk 0:01:21]}  Ne5 {[%clk 0:00:58]} 26. c5 {[%clk 0:01:21]}  Nc4 {[%clk 0:00:56]} 27. Ng5 {[%clk 0:01:03]}  Nxe3+ {[%clk 0:00:55]} 28. fxe3 {[%clk 0:01:04]}  Rxe3 {[%clk 0:00:54]} 29. Rh3 {[%clk 0:00:58]}  Rxh3 {[%clk 0:00:49]} 30. Nxh3 {[%clk 0:00:59]}  Bf6 {[%clk 0:00:48]} 31. Ng5 {[%clk 0:00:50]}  Be7 {[%clk 0:00:41]} 32. c6 {[%clk 0:00:43]}  bxc6 {[%clk 0:00:39]} 33. bxc6 {[%clk 0:00:43]}  Bxa3 {[%clk 0:00:34]} 34. Nxh7 {[%clk 0:00:39]}  Be7 {[%clk 0:00:32]} 35. Nd4 {[%clk 0:00:34]}  Nf4 {[%clk 0:00:29]} 36. Ng5 {[%clk 0:00:24]}  Bxg5 {[%clk 0:00:28]} 37. hxg5 {[%clk 0:00:25]}  Kd8 {[%clk 0:00:28]} 38. Kd2 {[%clk 0:00:21]}  Ke7 {[%clk 0:00:28]} 39. Nb5 {[%clk 0:00:21]}  Nd5 {[%clk 0:00:20]} 40. Kd3 {[%clk 0:00:19]}  Nb4+ {[%clk 0:00:20]} 41. Ke4 {[%clk 0:00:19]}  Nxc6 {[%clk 0:00:21]} 42. Nxc7 {[%clk 0:00:19]}  Nd8 {[%clk 0:00:19]} 43. Nb5 {[%clk 0:00:09]}  Nf7 {[%clk 0:00:18]} 44. Kf4 {[%clk 0:00:09]}  e5+ {[%clk 0:00:18]} 45. Ke4 {[%clk 0:00:08]}  Ke6 {[%clk 0:00:16]} 46. Nc7+ {[%clk 0:00:08]}  Kd6 {[%clk 0:00:16]} 47. Ne8+ {[%clk 0:00:07]}  Ke7 {[%clk 0:00:15]} 48. Nf6 {[%clk 0:00:04]}  Nxg5+ {[%clk 0:00:14]} 49. Kxe5 {[%clk 0:00:04]}  Nf7+ {[%clk 0:00:15]} 50. Ke4 {[%clk 0:00:02]}  Kxf6 {[%clk 0:00:15]} 51. Kf4 {[%clk 0:00:02]}  g5+ {[%clk 0:00:15]} 52. Kg4 {[%clk 0:00:03]}  Kg6 {[%clk 0:00:15]} 53. Kg3 {[%clk 0:00:03]}  Kf5 {[%clk 0:00:15]} 54. Kh3 {[%clk 0:00:04]}  Ne5 {[%clk 0:00:15]} 55. Kg3 {[%clk 0:00:04]}  g4 {[%clk 0:00:15]} 56. Kh4 {[%clk 0:00:04]}  Kf4 {[%clk 0:00:14]} 0-1


[Site "https://www.chess.com"]

[Event "Titled Tuesday Blitz October 5 2021"]
[White "Paltrinieri, Nicholas"]
[Black "Rosenberg, Evan S"]
[WhiteFideId "828262"]
[BlackFideId "2019299"]
[WhiteElo "2254"]
[BlackElo "2275"]
[Result "1-0"]
[Round "07"]
[TimeControl "180+1"]
[Date "2021.10.05"]
[WhiteClock "0:00:23"]
[BlackClock "0:00:02"]

1. d4 {[%clk 0:02:33]}  Nf6 {[%clk 0:02:59]} 2. Bg5 {[%clk 0:02:33]}  c5 {[%clk 0:02:59]} 3. Nc3 {[%clk 0:02:33]}  cxd4 {[%clk 0:02:59]} 4. Qxd4 {[%clk 0:02:33]}  Nc6 {[%clk 0:02:59]} 5. Qh4 {[%clk 0:02:34]}  h6 {[%clk 0:02:51]} 6. O-O-O {[%clk 0:02:33]}  d6 {[%clk 0:02:46]} 7. e4 {[%clk 0:02:33]}  Be6 {[%clk 0:02:40]} 8. Kb1 {[%clk 0:02:22]}  Qa5 {[%clk 0:02:40]} 9. Bxf6 {[%clk 0:02:20]}  gxf6 {[%clk 0:02:40]} 10. f4 {[%clk 0:02:21]}  Rc8 {[%clk 0:02:35]} 11. f5 {[%clk 0:02:20]}  Nb4 {[%clk 0:01:58]} 12. fxe6 {[%clk 0:01:45]}  Rxc3 {[%clk 0:01:52]} 13. a3 {[%clk 0:01:40]}  Nxc2 {[%clk 0:00:44]} 14. exf7+ {[%clk 0:01:39]}  Kd8 {[%clk 0:00:39]} 15. bxc3 {[%clk 0:01:13]}  Nxa3+ {[%clk 0:00:39]} 16. Kb2 {[%clk 0:01:12]}  Nb5 {[%clk 0:00:31]} 17. Bxb5 {[%clk 0:01:08]}  Qxb5+ {[%clk 0:00:32]} 18. Kc2 {[%clk 0:00:52]}  Qa4+ {[%clk 0:00:32]} 19. Kd2 {[%clk 0:00:52]}  h5 {[%clk 0:00:30]} 20. Ke2 {[%clk 0:00:44]}  Bh6 {[%clk 0:00:24]} 21. Nf3 {[%clk 0:00:42]}  Qc2+ {[%clk 0:00:23]} 22. Nd2 {[%clk 0:00:40]}  Qxc3 {[%clk 0:00:22]} 23. Qg3 {[%clk 0:00:30]}  Qxg3 {[%clk 0:00:08]} 24. hxg3 {[%clk 0:00:31]}  Bf8 {[%clk 0:00:06]} 25. g4 {[%clk 0:00:28]}  h4 {[%clk 0:00:05]} 26. Nf3 {[%clk 0:00:26]}  Rh7 {[%clk 0:00:04]} 27. Nxh4 {[%clk 0:00:23]}  Rxf7 {[%clk 0:00:04]} 28. Ng6 {[%clk 0:00:24]}  Ke8 {[%clk 0:00:02]} 29. Rh8 {[%clk 0:00:23]} 1-0


[Site "https://www.chess.com"]